Cogmind - Beta 12 @@@ ROGUE MODE // 2023.12.03 @ 09:19:15 Player: Dosh Result: Self-destructed Performance ------------- Evolutions (3) 1500 Regions Visited (10) 2000 Robots Destroyed (120) 600 Value Destroyed (5098) 5098 Prototype IDs (26) 520 Alien Tech Used (0) 0 Bonus (1454) 1454 TOTAL SCORE: 11172 Bonus ------- High Alert Combat Kills 329 Follower Combat Kills 142 Entered Garrisons 200 Used RIF Installer 500 Aligned with FarCom 300 Friendly Fire -17 Cogmind --------- Core Integrity 9/700 Matter 49/300 Energy 100/100 System Corruption 3% Temperature Cool (9) Movement Core (1350) Ox26 Location -7/Factory Parts ------- > --- POWER (2) -------- (None) > --- PROPULSION (3) --- (None) > --- UTILITY (6) ------ Coolant Injector Huge Storage Unit Hacking Suite Hacking Suite > --- WEAPON (2) ------- (None) > --- INVENTORY (25) --- Light Treads Light Treads Improved Cooling System Improved Terrain Scanner Improved Terrain Scan Processor Armor Integrity Analyzer Cloak of Protection Hardened Heavy Armor Plating Layered Light Armor Plating Improved Shield Generator Advanced Hacking Suite System Shield Authchip [R/Combat] Relay Coupler [NC] (25) Minigun Minigun Advanced Assault Cannon Advanced Assault Cannon Rocket Launcher Remote Datajack Flail Peak State ------------ > --- POWER ------------ Micro Nuclear Core Micro Fission Core > --- PROPULSION ------- Light Treads Armored Treads Armored Medium Treads > --- UTILITY ---------- High-capacity Storage Unit Layered Light Armor Plating Improved Shield Generator Hacking Suite Hacking Suite Hacking Suite > --- WEAPON ----------- Enhanced Autogun Enhanced Gauss Cannon > --- INVENTORY -------- Deuterium Engine Light Treads Light Treads Improved Heat Sink Coolant Injector Huge Storage Unit High-capacity Matter Pod Improved Terrain Scanner Improved Terrain Scan Processor Cloak of Protection Layered Light Armor Plating Advanced Hacking Suite Authchip [R/Combat] Relay Coupler [NC] Minigun Minigun Gauss Cannon Rocket Launcher Remote Datajack Flail [Rating: 54] Favorites ----------- Power Deuterium Engine Engine Deuterium Engine Power Core Micro Fission Core Propulsion Light Treads Treads Light Treads Wheel Compact Wheel Utility Hacking Suite Device Improved Shield Generator Storage High-capacity Storage Unit Processor Transport Network Coupler Hackware Hacking Suite Protection Layered Light Armor Plating Weapon Minigun Ballistic Gun Minigun Ballistic Cannon Enhanced Gauss Cannon Launcher Grenade Launcher Impact Weapon Flail Build | -11 -10 -10 -9 -9 -9 -8 -8 -8 -8 -7 ------- Run | Jun Mat Min Mat Min Exi Min Mat Gar Mat Fac Slots Evolved 6 | . . . 2 . . . 2 . . 2 Power 1 | . . . . . . . . . . 1 Propulsion 1 | . . . . . . . 1 . . . Utility 4 | . . . 2 . . . 1 . . 1 Weapon . | . . . . . . . . . . . Parts Attached 108 | 7 5 1 27 . 1 1 14 23 12 17 Power 12 | 1 . . 2 . . 1 2 2 1 3 Engine 5 | 1 . . 2 . . . . . . 2 Core 7 | . . . . . . 1 2 2 1 1 Reactor . | . . . . . . . . . . . Propulsion 30 | 3 1 . 10 . . . 5 7 3 1 Treads 29 | 2 1 . 10 . . . 5 7 3 1 Leg . | . . . . . . . . . . . Wheel 1 | 1 . . . . . . . . . . Hover . | . . . . . . . . . . . Flight . | . . . . . . . . . . . Utility 31 | 1 2 . 7 . 1 . 2 6 3 9 Device 10 | . . . 1 . . . 1 3 . 5 Storage 4 | 1 1 . . . 1 . . . . 1 Processor 2 | . 1 . 1 . . . . . . . Hackware 5 | . . . 3 . . . . . 1 1 Protection 10 | . . . 2 . . . 1 3 2 2 Artifact . | . . . . . . . . . . . Weapon 35 | 2 2 1 8 . . . 5 8 5 4 Energy Gun . | . . . . . . . . . . . Energy Cannon . | . . . . . . . . . . . Ballistic Gun 19 | 2 1 . 6 . . . 2 4 2 2 Ballistic Cannon 8 | . . . . . . . 2 3 1 2 Launcher 2 | . 1 1 . . . . . . . . Special Weapon . | . . . . . . . . . . . Impact Weapon 6 | . . . 2 . . . 1 1 2 . Slashing Weapon . | . . . . . . . . . . . Piercing Weapon . | . . . . . . . . . . . Special Melee Weapon . | . . . . . . . . . . . Unidentified Prototypes 1 | . . . . . . . 1 . . . Parts Lost 24 | . . . 2 . . . 2 6 . 14 Power 4 | . . . . . . . . . . 4 Propulsion 8 | . . . . . . . 1 3 . 4 Utility 8 | . . . 2 . . . 1 2 . 3 Weapon 4 | . . . . . . . . 1 . 3 Highest Loss Streak 9 | . . . 1 . . . 1 2 . 9 To Critical Strikes . | . . . . . . . . . . . Average Slot Usage (%) 96 | . 97 100 95 100 100 100 92 94 95 96 Engine 6 | . 14 14 10 11 11 9 . . . 9 Core 4 | . . . . . . 1 9 8 8 4 Treads 24 | . 28 28 22 22 22 22 26 25 24 21 Device 4 | . . . 1 . . . . 7 9 7 Storage 9 | . 14 14 11 11 11 11 9 9 9 7 Processor 2 | . 11 14 7 . . . . . . . Hackware 14 | . . . 12 22 22 22 18 9 17 22 Protection 8 | . . . 7 11 11 11 11 15 9 6 Ballistic Gun 14 | . 28 18 21 22 22 22 9 13 8 6 Ballistic Cannon 3 | . . . . . . . 6 3 8 6 Naked Turns . | . . . . . . . . . . . Heaviest Build 124 | 14 29 30 38 38 58 58 63 69 66 124 Greatest Support 84 | 40 40 40 40 40 40 40 84 84 67 67 Greatest Overweight (x) 35 | 1 . . 1 . 1 1 . 15 1 35 Average Overweight (x) . | . . . . . . 1 . . . 1 Largest Inventory Capacity 25 | 8 15 15 15 15 20 20 20 20 20 25 Average Capacity 18 | 7 11 15 15 15 15 20 20 20 20 21 Most Carried 23 | 4 12 13 15 15 15 19 20 20 20 23 Average Carried 17 | 2 8 12 14 15 14 16 19 19 19 19 Final Capacity 25 | 8 15 15 15 15 20 20 20 20 20 25 Final Carried 22 | 4 12 13 15 15 15 19 18 19 20 22 Class Distribution -------------------- 59% | Hacker-Mutant 40% | Mutant Dominant Class ---------------- Mutant | -10/Materials Mutant | -10/Mines Mutant | -9/Materials Hacker-Mutant | -9/Mines Hacker-Mutant | -9/Exiles Hacker-Mutant | -8/Mines Hacker-Mutant | -8/Materials Mutant | -8/Garrison Hacker-Mutant | -8/Materials Hacker-Mutant | -7/Factory Resources | -11 -10 -10 -9 -9 -9 -8 -8 -8 -8 -7 ----------- Run | Jun Mat Min Mat Min Exi Min Mat Gar Mat Fac Matter Collected 4128 | 210 321 45 861 . . 92 445 807 381 966 Remotely . | . . . . . . . . . . . Salvage Created 4179 | . 391 24 1179 . . 123 409 821 385 847 Parts 265 | . 30 3 81 . . 8 32 46 30 35 Haulers Intercepted 2 | . . . 1 . . . 1 . . . Recyclers Shooed 3 | . 1 . . . . . . . . 2 Parts Field Recycled . | . . . . . . . . . . . Retrieved Matter . | . . . . . . . . . . . Parts Self-Destructed . | . . . . . . . . . . . Prevented . | . . . . . . . . . . . Kills | -11 -10 -10 -9 -9 -9 -8 -8 -8 -8 -7 ------- Run | Jun Mat Min Mat Min Exi Min Mat Gar Mat Fac Combat Hostiles Destroyed 97 | . 12 3 20 . . 2 14 21 9 16 Melee 2 | . . . . . . . . 1 1 . Guns 50 | . 9 . 20 . . 2 4 10 1 4 Cannons 37 | . . . . . . . 10 10 6 11 AOE 8 | . 3 3 . . . . . . 1 1 Classes Destroyed 16 | . 4 . 5 . . 1 1 3 . 2 Worker 2 | . . . 1 . . . . . 1 . Builder 4 | . . . 2 . . . . . 1 1 Tunneler 1 | . . . . . . 1 . . . . Hauler 2 | . . . 1 . . . 1 . . . Recycler 4 | . . . . . . . . . . 4 Mechanic 1 | . . . . . . . . . . 1 Operator 3 | . 1 . 1 . . . . . . 1 Watcher 6 | . 1 . 4 . . . . . 1 . Swarmer 15 | . 3 3 . . . . 6 3 . . Saboteur 1 | . . . . . . . . 1 . . Grunt 51 | . 9 . 12 . . 2 4 9 5 10 Brawler 2 | . . . 1 . . . . . . 1 Sentry 16 | . . . 7 . . . 3 2 3 1 Specialist 1 | . . . . . . . . 1 . . Hunter 5 | . . . . . . . 1 2 1 1 Programmer 6 | . . . . . . . . 3 . 3 Best Kill Streak 5 | . 3 3 5 . . 2 4 4 3 5 Combat Bots Only 5 | . 3 3 5 . . 2 4 4 2 2 Max Kills in Single Turn 2 | . 2 2 1 . . 1 1 2 1 1 Gunslinging 1 | . . . . . . . . 1 . . Exploded 2 | . 2 2 . . . . . . 1 1 Melee 1 | . . . . . . . . 1 1 . Uniques/NPCs Destroyed . | . . . . . . . . . . . Combat | -11 -10 -10 -9 -9 -9 -8 -8 -8 -8 -7 -------- Run | Jun Mat Min Mat Min Exi Min Mat Gar Mat Fac Damage Taken 7984 | . 391 46 869 . . 191 1018 1601 581 3287 Core 1424 | . 53 6 165 . . 35 53 162 259 691 Absorbed by Shields 510 | . . . . . . . . 256 . 254 Redirected to Shielding 54 | . . . 54 . . . . . . . Regen/Repaired (Parts) 1210 | . . . 400 . . . 128 . 500 182 Core Remaining (%) 59 | 100 . 76 . . . 50 . . 13 . Volleys Fired 349 | . 46 2 70 . . 9 48 57 26 91 Largest 2 | . 2 2 2 . . 2 2 2 2 2 Hottest 82 | . 50 50 50 . . 50 73 82 82 82 Shots Fired 685 | . 92 4 140 . . 18 94 115 52 170 Gun 486 | . 90 2 140 . . 18 48 85 26 77 Cannon 195 | . . . . . . . 46 30 26 93 Launcher 4 | . 2 2 . . . . . . . . Special . | . . . . . . . . . . . Kinetic 681 | . 90 2 140 . . 18 94 115 52 170 Thermal . | . . . . . . . . . . . Explosive 4 | . 2 2 . . . . . . . . Electromagnetic . | . . . . . . . . . . . Robot Hit Streak 12 | . 10 1 12 . . 5 11 9 12 10 Robot Miss Streak 5 | . 3 2 4 . . 2 5 3 3 5 Penetration Max 1 | . . . . . . . 1 . . 1 Secondary Targets 6 | . . . 5 . . . . 1 . . Max Gunslinging Chain 1 | . . . 1 . . . . 1 . . Shots Hit Robots 425 | . 54 1 102 . . 12 53 72 34 97 Core Hits 177 | . 24 3 44 . . 6 19 33 12 36 Critical Kills 2 | . . . 1 . . . . 1 . . Critical Parts Destroyed 1 | . . . . . . . . 1 . . Critical Strikes 18 | . . . 1 . . . 2 7 2 6 Destroy 3 | . . . 1 . . . . 2 . . Blast 15 | . . . . . . . 2 5 2 6 Melee Attacks 16 | . . . 7 . . . 5 2 2 . Impact 16 | . . . 7 . . . 5 2 2 . Slashing . | . . . . . . . . . . . Piercing . | . . . . . . . . . . . Sneak Attacks 2 | . . . 1 . . . 1 . . . Combat Hostiles . | . . . . . . . . . . . Follow-up Attacks . | . . . . . . . . . . . Damage Inflicted 9797 | . 893 100 1910 . . 256 1262 1497 1032 2847 Guns 5200 | . 682 . 1780 . . 256 409 892 296 885 Cannons 3768 | . . . . . . . 777 597 548 1846 Explosions 486 | . 198 99 . . . . . . 96 93 Melee 171 | . . . 103 . . . 68 . . . Ramming 172 | . 13 1 27 . . . 8 8 92 23 Kinetic 8968 | . 682 . 1780 . . 256 1186 1489 844 2731 Thermal 93 | . . . . . . . . . . 93 Explosive 393 | . 198 99 . . . . . . 96 . Electromagnetic . | . . . . . . . . . . . Impact 171 | . . . 103 . . . 68 . . . Slashing . | . . . . . . . . . . . Piercing . | . . . . . . . . . . . Highest Corruption 3 | . 1 1 . . . . . 2 2 3 Average Corruption 1 | . 1 1 . . . . . 1 2 2 Corruption Purged . | . . . . . . . . . . . Corruption Blocked . | . . . . . . . . . . . Effects 39 | . 3 1 . . . . . 2 16 17 Message Errors 8 | . . . . . . . . . 2 6 Matter Fused 10 | . 1 1 . . . . . . 6 2 Heat Flow Errors 5 | . . . . . . . . . 4 1 Energy Discharges 3 | . 1 . . . . . . . . 2 Parts Rejected 1 | . . . . . . . . . . 1 Data Loss (minor) 9 | . 1 . . . . . . 1 4 3 Misfires 3 | . . . . . . . . 1 . 2 Overload Shots . | . . . . . . . . . . . Overflow Damage 276 | . 9 . 73 . . . 88 4 29 73 Projectiles 144 | . . . . . . . 42 . 29 73 Explosions 13 | . 9 . . . . . . 4 . . Melee 119 | . . . 73 . . . 46 . . . Knockbacks 27 | . . . . . . . 7 . 4 16 Impact 1 | . . . . . . . . . 1 . Kinetic 25 | . . . . . . . 7 . 3 15 Secondary 1 | . . . . . . . . . . 1 Self-Inflicted Damage 282 | . . 12 . . . . . 106 96 68 Shots 4 | . . 1 . . . . . 1 1 1 Rammed 34 | . 4 1 9 . . . 3 1 12 4 Targets Rammed 38 | . 4 1 9 . . . 3 1 15 5 Kicked . | . . . . . . . . . . . Crushed 4 | . . . . . . . . . 3 1 Highest Temperature 397 | . 2 . 74 . . 188 321 391 284 397 Average Temperature 100 | . 2 . 17 . . 89 116 113 74 128 Received Heat Transfer 3318 | . 180 . 435 . . 180 324 305 207 1687 Effects 15 | . . . . . . . . 5 3 7 Shutdowns 2 | . . . . . . . . 1 . 1 Energy Bleed 2 | . . . . . . . . . . 2 Interference 7 | . . . . . . . . 1 3 3 Matter Decay 2 | . . . . . . . . 2 . . Short Circuit 1 | . . . . . . . . 1 . . Damage (minor) 1 | . . . . . . . . . . 1 Siege Activations . | . . . . . . . . . . . Robots Corrupted . | . . . . . . . . . . . Combat Hostiles . | . . . . . . . . . . . Parts Fried 1 | . . . 1 . . . . . . . Impact Corruptions 4 | . . . 3 . . . 1 . . . Robots Melted . | . . . . . . . . . . . Combat Hostiles . | . . . . . . . . . . . Parts Melted . | . . . . . . . . . . . Heat Transferred 50 | . . . . . . . . . . 50 Parts Sabotaged 8 | . . . . . . . . 8 . . Parts Stolen . | . . . . . . . . . . . Parts Stripped . | . . . . . . . . . . . Power Chain Reactions . | . . . . . . . . . . . Missiles Intercepted . | . . . . . . . . . . . Alert | -11 -10 -10 -9 -9 -9 -8 -8 -8 -8 -7 ------- Run | Jun Mat Min Mat Min Exi Min Mat Gar Mat Fac Peak Influence 1169 | . 140 107 441 120 . 111 261 1169 586 305 Initial 569 | . . 10 41 120 . . 35 96 569 222 Average 247 | . 45 68 211 120 . 77 79 585 486 79 Maximum Alert Level 4 | . . . 2 . . . 1 4 2 1 Low Security (%) 57 | 100 100 100 44 100 . 100 96 6 . 92 Level 1 15 | . . . 53 . . . 3 18 7 7 Level 2 21 | . . . 2 . . . . 48 92 . Level 3 4 | . . . . . . . . 23 . . Level 4 . | . . . . . . . . 3 . . Level 5 . | . . . . . . . . . . . High Security . | . . . . . . . . . . . Max Security . | . . . . . . . . . . . Squads Dispatched 23 | . 3 . 2 . . . 4 . 5 9 Investigation 9 | . 2 . 1 . . . 3 . 1 2 Extermination 4 | . . . . . . . . . . 4 Reinforcement 5 | . 1 . 1 . . . . . 1 2 Assault 1 | . . . . . . . . . . 1 Garrison 4 | . . . . . . . 1 . 3 . Intercept . | . . . . . . . . . . . Searches Triggered . | . . . . . . . . . . . Construction Impeded 1 | . . . . . . . . . 1 . Haulers Reinforced . | . . . . . . . . . . . Active Scanning Responses . | . . . . . . . . . . . Cargo Convoy Interrupts . | . . . . . . . . . . . Stealth | -11 -10 -10 -9 -9 -9 -8 -8 -8 -8 -7 --------- Run | Jun Mat Min Mat Min Exi Min Mat Gar Mat Fac Distress Signals 4 | . 1 . 1 . . . 1 . 1 . Communications Jammed . | . . . . . . . . . . . Distress Signals . | . . . . . . . . . . . Times Spotted 135 | . 17 3 32 . . 4 16 26 10 27 Peak Tracking Total 6 | . 3 3 4 . . 3 4 6 2 6 Tactical Retreats 2 | . . . . . . . . 2 . . Traps | -11 -10 -10 -9 -9 -9 -8 -8 -8 -8 -7 ------- Run | Jun Mat Min Mat Min Exi Min Mat Gar Mat Fac Traps Triggered 11 | . 3 . 2 . . . 1 3 . 2 Indirectly . | . . . . . . . . . . . Trap Hack Attempts . | . . . . . . . . . . . Triggered . | . . . . . . . . . . . Disarmed . | . . . . . . . . . . . Reprogrammed . | . . . . . . . . . . . Reused . | . . . . . . . . . . . Traps Extracted . | . . . . . . . . . . . Installed . | . . . . . . . . . . . Triggered . | . . . . . . . . . . . Machines | -11 -10 -10 -9 -9 -9 -8 -8 -8 -8 -7 ---------- Run | Jun Mat Min Mat Min Exi Min Mat Gar Mat Fac Machines Disabled 16 | . . 1 1 . . . . 5 1 8 Max in Single Turn 2 | . . 1 1 . . . . 2 1 2 Garrison Access 1 | . . . . . . . . . . 1 Garrison Relay 3 | . . . . . . . . 3 . . Phase Generator 1 | . . . . . . . . 1 . . Machines Repaired . | . . . . . . . . . . . Machines Sabotaged . | . . . . . . . . . . . Overloaded Fab Kills . | . . . . . . . . . . . Hacking | -11 -10 -10 -9 -9 -9 -8 -8 -8 -8 -7 --------- Run | Jun Mat Min Mat Min Exi Min Mat Gar Mat Fac Machines Accessed 34 | . 5 . 10 . 1 . 9 1 5 3 Terminals 21 | . 4 . 8 . . . 4 1 3 1 Fabricators 1 | . . . . . . . . . . 1 Repair Stations 6 | . 1 . 1 . . . 2 . 1 1 Recycling Units 1 | . . . . . . . 1 . . . Scanalyzers 3 | . . . 1 . . . 1 . 1 . Garrison Access 1 | . . . . . . . 1 . . . Total Hacks 117 | . 14 . 33 . 1 . 32 2 24 11 Successful 81 | . 4 . 24 . 1 . 22 1 20 9 Failed 36 | . 10 . 9 . . . 10 1 4 2 Catastrophic 5 | . 3 . 1 . . . . . 1 . Database Lockouts . | . . . . . . . . . . . Manual 39 | . 9 . 14 . 1 . 9 1 5 . Terminals 58 | . 11 . 19 . . . 17 2 7 2 Fabricators 5 | . . . . . . . . . . 5 Repair Stations 37 | . 3 . 8 . . . 8 . 14 4 Recycling Units 1 | . . . . . . . 1 . . . Scanalyzers 13 | . . . 6 . . . 4 . 3 . Garrison Access 2 | . . . . . . . 2 . . . Terminal Hacks 23 | . 2 . 7 . 1 . 6 1 4 2 Record 1 | . . . . . . . 1 . . . Robot Analysis 1 | . . . 1 . . . . . . . Prototype ID Bank 1 | . . . . . . . 1 . . . Level Access Points 1 | . . . . . . . . . 1 . Branch Access Points 1 | . . . 1 . . . . . . . Emergency Access Points 2 | . 1 . . . . . . 1 . . Terminal Index 2 | . . . 1 . . . 1 . . . Repair Station Index 1 | . . . 1 . . . . . . . Alert Level 2 | . . . 1 . . . . . . 1 Unreport Threat 1 | . . . . . . . . . . 1 Locate Traps 5 | . 1 . 2 . . . . . 2 . Dispatch Records 1 | . . . . . . . 1 . . . Security Status 1 | . . . . . . . 1 . . . Surveillance Status 1 | . . . . . . . . . 1 . Hauler Manifests 1 | . . . . . . . 1 . . . EX-Prototype ID Bank 1 | . . . . . 1 . . . . . Fabricator Hacks 3 | . . . . . . . . . . 3 Load Schematic 2 | . . . . . . . . . . 2 Build 1 | . . . . . . . . . . 1 Repair Station Hacks 33 | . 1 . 8 . . . 8 . 12 4 Scan Component 17 | . 1 . 4 . . . 4 . 6 2 Repair 16 | . . . 4 . . . 4 . 6 2 Recycling Unit Hacks 1 | . . . . . . . 1 . . . Retrieve Components 1 | . . . . . . . 1 . . . Scanalyzer 13 | . . . 6 . . . 4 . 3 . Insert Component 7 | . . . 3 . . . 2 . 2 . Analyze 6 | . . . 3 . . . 2 . 1 . Garrison Access Hacks 1 | . . . . . . . 1 . . . Unlock Access 1 | . . . . . . . 1 . . . Unauthorized Hacks 7 | . 1 . 3 . . . 2 . 1 . Terminals 7 | . 1 . 3 . . . 2 . 1 . Assimilate 1 | . . . . . . . 1 . . . Botnet 6 | . 1 . 3 . . . 1 . 1 . Fabricators . | . . . . . . . . . . . Repair Stations . | . . . . . . . . . . . Recycling Units . | . . . . . . . . . . . Scanalyzers . | . . . . . . . . . . . Garrison Access . | . . . . . . . . . . . Data Cores Recovered . | . . . . . . . . . . . Used . | . . . . . . . . . . . Hacking Detections 25 | . 5 . 8 . . . 5 1 3 3 Full Trace Events 8 | . 3 . 1 . . . 2 . 1 1 Feedback Events . | . . . . . . . . . . . Feedback Blocked . | . . . . . . . . . . . Robot Schematics Acquired . | . . . . . . . . . . . Robots Built . | . . . . . . . . . . . Authchips . | . . . . . . . . . . . Time . | . . . . . . . . . . . Total Robot Build Rating . | . . . . . . . . . . . Part Schematics Acquired 6 | . . . 3 . . . 2 . 1 . Parts Built 1 | . . . . . . . . . . 1 Authchips . | . . . . . . . . . . . Time 58 | . . . . . . . . . . 58 Total Part Build Rating 3 | . . . . . . . . . . 3 Parts Repaired 16 | . . . 4 . . . 4 . 6 2 Time 689 | . . . 138 . . . 133 . 314 104 Parts Recycled . | . . . . . . . . . . . Recycled Matter . | . . . . . . . . . . . Retrieved Matter . | . . . . . . . . . . . Retrieved Components 9 | . . . . . . . 9 . . . Parts Scanalyzed 6 | . . . 3 . . . 2 . 1 . Part Schematics Acquired 6 | . . . 3 . . . 2 . 1 . Parts Damaged . | . . . . . . . . . . . Bothacking | -11 -10 -10 -9 -9 -9 -8 -8 -8 -8 -7 ------------ Run | Jun Mat Min Mat Min Exi Min Mat Gar Mat Fac Used RIF Installer 1 | . . . . . . . . 1 . . Robots Hacked . | . . . . . . . . . . . Non-combat . | . . . . . . . . . . . Combat . | . . . . . . . . . . . Robot Hacks Applied . | . . . . . . . . . . . Relay Couplers Released 13 | . . . . . . . . 12 . 1 Machine Destruction 13 | . . . . . . . . 12 . 1 Fabnet Peak Effective % . | . . . . . . . . . . . Robots Rewired 3 | . . . . . . . . 3 . . Allies Hacked . | . . . . . . . . . . . Hacks Repelled . | . . . . . . . . . . . Allies | -11 -10 -10 -9 -9 -9 -8 -8 -8 -8 -7 -------- Run | Jun Mat Min Mat Min Exi Min Mat Gar Mat Fac Total Allies 7 | . . . . 3 . . 1 3 . . Largest Group 3 | . . . . 3 3 2 1 3 . . Highest-Rated Group 45 | . . . . 40 40 32 26 45 . . Highest-Rated Ally 26 | . . . . 16 16 16 26 15 . . Total Orders . | . . . . . . . . . . . Ally Attacks 27 | . . . . . . 17 . 10 . . Total Damage 423 | . . . . . . 201 . 222 . . Kills 4 | . . . . . . 2 . 2 . . Allies Corrupted . | . . . . . . . . . . . Allies Melted 1 | . . . . . . . . 1 . . Intel | -11 -10 -10 -9 -9 -9 -8 -8 -8 -8 -7 ------- Run | Jun Mat Min Mat Min Exi Min Mat Gar Mat Fac Robot Analysis Total 1 | . . . 1 . . . . . . . Derelict Logs Recovered . | . . . . . . . . . . . Drone Launches . | . . . . . . . . . . . Drone Recoveries . | . . . . . . . . . . . Exploration | -11 -10 -10 -9 -9 -9 -8 -8 -8 -8 -7 ------------- Run | Jun Mat Min Mat Min Exi Min Mat Gar Mat Fac Turns Passed 12652 | 86 1376 126 2159 240 439 364 1225 2324 1582 2731 Spaces Moved 5507 | 48 752 73 1076 144 261 136 515 1104 491 907 Core 7 | 4 . . . . . . . 2 . 1 Treads 5500 | 44 752 73 1076 144 261 136 515 1102 491 906 Legs . | . . . . . . . . . . . Wheels . | . . . . . . . . . . . Hover . | . . . . . . . . . . . Flight . | . . . . . . . . . . . Fastest Speed 50 | 50 160 160 160 160 160 240 160 160 163 246 Average Speed 182 | 152 160 160 160 160 167 240 160 181 177 249 Slowest Speed 1800 | 160 160 160 240 160 240 240 160 800 245 1800 Overloaded Moves . | . . . . . . . . . . . Propulsion Burnouts . | . . . . . . . . . . . Robots Hopped . | . . . . . . . . . . . Cave-ins Triggered . | . . . . . . . . . . . Exploration Rate (%) 39 | 4 76 16 71 34 61 40 24 65 30 18 Regions Visited 10 Branch Regions 4 Pre-discovered Areas . | . . . . . . . . . . . Known Exits Taken 3 | . . . 1 . . . 1 . 1 . Unknown Exits Taken 6 | 1 1 1 . 1 1 1 . . . . Scrap Searched 1 | . . 1 . . . . . . . . Spaces Dug 16 | . . . 5 . . . 9 . 2 . Terrain Destroyed 214 | . 7 12 5 . . . 25 80 40 45 Melee 11 | . . . 5 . . . 4 . 2 . Projectile 52 | . . . . . . . 21 2 9 20 AOE 151 | . 7 12 . . . . . 78 29 25 Terrain Rammed . | . . . . . . . . . . . Walls Destroyed . | . . . . . . . . . . . Machines Disabled . | . . . . . . . . . . . Actions | -11 -10 -10 -9 -9 -9 -8 -8 -8 -8 -7 --------- Run | Jun Mat Min Mat Min Exi Min Mat Gar Mat Fac Total 7472 | 58 829 77 1386 154 264 160 831 1334 1147 1232 Wait 1325 | . 12 . 174 11 . 12 226 101 591 198 Move 5496 | 47 751 72 1075 143 260 135 514 1102 490 907 Hop . | . . . . . . . . . . . Pick Up 61 | 3 9 1 8 . 1 3 10 11 6 9 Fast Attach 36 | 7 1 . 9 . . . 2 9 4 4 Attach 20 | . . . 1 . . . 4 7 2 6 Detach 7 | 1 . . 2 . . . 1 1 1 1 Swap 52 | . 4 1 17 . 1 1 8 7 6 7 Drop 43 | . 2 . 14 . 2 . 10 7 4 4 Fire 349 | . 46 2 70 . . 9 48 57 26 91 Melee 16 | . . . 7 . . . 5 2 2 . Ram . | . . . . . . . . . . . Kick . | . . . . . . . . . . . Crush 38 | . 4 1 9 . . . 3 1 15 5 Escape Stasis . | . . . . . . . . . . . Rewire 29 | . . . . . . . . 29 . . Trap . | . . . . . . . . . . . Miscellaneous . | . . . . . . . . . . . Route ------- -11/Junkyard -10/Materials (discovered 3 exits: *Mat x2 / [*Min]) -10/Mines -9/Materials (discovered 3 exits: *Mat x2 / *Min) -9/Mines (discovered 2 exits: *Mat / *Exi) -9/Exiles -8/Mines -8/Materials (discovered 2 exits: [*Sto] / Gar) -8/Garrison -8/Materials (discovered 3 exits: *Fac x3) -7/Factory History --------- Turn | Location | Event 25 | -11/Junkyard | Discovered new exit (range 15) 87 | -11/Junkyard | Entered Materials 320 | -10/Materials | Build established: Mutant 659 | -10/Materials | Discovered new exit (range 4) 878 | -10/Materials | Discovered new exit (range 12) 972 | -10/Materials | Discovered new exit (range 14) 1463 | -10/Materials | Entered Mines 1470 | -10/Mines | Received a Rocket Launcher from a helpful Derelict 1522 | -10/Mines | Discovered new exit (range 8) 1589 | -10/Mines | Entered Materials 1589 | -9/Materials | Evolved 2 slots: Utility x2 1737 | -9/Materials | Repaired Broken Lgt. Treads 1764 | -9/Materials | Repaired Lgt. Treads 2379 | -9/Materials | Discovered new exit (range 15) 2975 | -9/Materials | Discovered new exit (range 16) 3164 | -9/Materials | Identified exit to Mines 3292 | -9/Materials | Build established: Hacker-Mutant 3637 | -9/Materials | Repaired Minigun 3676 | -9/Materials | Repaired Minigun 3748 | -9/Materials | Entered Mines 3783 | -9/Mines | Assisted by bots powering up and referring to "LRC-V3" 3930 | -9/Mines | Discovered new exit (range 8) 3969 | -9/Mines | Deemed a non-threat by the Exiles lab entrance 3970 | -9/Mines | Discovered new exit (range 5) 3988 | -9/Mines | Entered Exiles 3988 | -9/Exiles | Accompanied by 3 allies 4028 | -9/Exiles | Met 8R-AWN 4056 | -9/Exiles | Met EX-HEX 4105 | -9/Exiles | Met EX-BIN 4124 | -9/Exiles | Aligned with FarCom system 4126 | -9/Exiles | Given EX-Vault access code 4166 | -9/Exiles | Opened EX-Vault 4181 | -9/Exiles | Found Cloak of Protection 4214 | -9/Exiles | Warned to stay clear of 0b10 Research branches 4262 | -9/Exiles | Met EX-DEC 4408 | -9/Exiles | Discovered new exit (range 10) 4427 | -9/Exiles | Left Exiles lab with Cloak of Protection 4427 | -9/Exiles | Entered Mines 4427 | -8/Mines | Accompanied by 3 allies 4761 | -8/Mines | Discovered new exit (range 10) 4791 | -8/Mines | Entered Materials 4791 | -8/Materials | Evolved 2 slots: Propulsion x1, Utility x1 4827 | -8/Materials | Repaired Imp. Terrain Scan Processor 5523 | -8/Materials | Repaired Imp. Terrain Scanner 5568 | -8/Materials | Repaired Gauss Cannon 5601 | -8/Materials | Repaired Hrd. Light Armor Plating 5779 | -8/Materials | Discovered new exit (range 12) 5859 | -8/Materials | Identified exit to Garrison 5927 | -8/Materials | Garrison activated, responded to threat 6016 | -8/Materials | Entered Garrison 6046 | -8/Garrison | Triggered checkpoint 6108 | -8/Garrison | Triggered checkpoint 6179 | -8/Garrison | Phase Generator disabled 6179 | -8/Garrison | Spotted B-75 Beast 6556 | -8/Garrison | Build established: Mutant 6892 | -8/Garrison | Discovered new exit (range 10) 6952 | -8/Garrison | Triggered checkpoint 7022 | -8/Garrison | Triggered checkpoint 7045 | -8/Garrison | Installed Relay Interface Framework 7104 | -8/Garrison | Garrison Relay disabled 7204 | -8/Garrison | Spotted B-75 Beast 7634 | -8/Garrison | Triggered checkpoint 7724 | -8/Garrison | Triggered checkpoint 7892 | -8/Garrison | Garrison Relay disabled 7912 | -8/Garrison | Garrison Relay disabled 8340 | -8/Garrison | Entered Materials 8393 | -8/Materials | Repaired Enh. Autogun 8437 | -8/Materials | Repaired Lyr. Light Armor Plating 8505 | -8/Materials | Repaired Enh. Autogun 8562 | -8/Materials | Repaired Arm. Medium Treads 8620 | -8/Materials | Repaired Mic. Fission Core 8659 | -8/Materials | Repaired Deuterium Engine 8699 | -8/Materials | Build established: Hacker-Mutant 9021 | -8/Materials | Core integrity fell below 50% 9085 | -8/Materials | Garrison activated, responded to threat 9637 | -8/Materials | Core integrity fell below 20% 9786 | -8/Materials | Identified exit to Factory 9922 | -8/Materials | Entered Factory 9922 | -7/Factory | Evolved 2 slots: Power x1, Utility x1 10774 | -7/Factory | Lost 3 parts (1p1n1w) 11328 | -7/Factory | Repaired Enh. Autogun 11480 | -7/Factory | Repaired Imp. Shield Generator? 12585 | -7/Factory | Fabricated Enh. Autogun (x1) 12638 | -7/Factory | Core integrity fell below 50% 12650 | -7/Factory | Core integrity fell below 20% 12653 | -7/Factory | Self-destructed Last Messages --------------- 12598_ M-13 Machinist repairs G-47 Trooper. 12606_ Destroyed Lgt. Nuclear Core. 12606_ G-47 Trooper knocked back. 12607_ 9LRJOLEEMNGVOWQTY7VAW>/%U8% 12611_ Critical hit (Burn: +37). 12613_ Lgt. Treads destroyed. 12613_ U-05 Engineer builds a Wall. 12618_ Imp. Medium Armor Plating destroyed. 12620_ G-47 Trooper suffers critical hit (Burn). 12623_ Adv. Assault Cannon destroyed. 12624_ V4D2K5%TJ9,VWNDTX5J7HHF8:%SBK<1LW 12634_ Arm. Medium Treads destroyed. 12636_ Rnf. Deuterium Engine destroyed. 12637_ Critical hit (Burn: +37). 12640_ R-06 Scavenger collects Hcp. Matter Pod. 12640_ Enh. Autogun destroyed. 12640_ Critical hit (Burn: +37). 12641_ Deuterium Engine destroyed. 12642_ Hacking Suite destroyed. 12650_ R-06 Scavenger collects Aluminum Leg. Map ----- +----------------------------------------------------+ | ???????????# ???????????????????????????? | | ???????????# #???????????????????????????? | | ???????????# #???????????????????????????? | | ???????????# #???????????????????????????? | | ???????????# #???????????????????????????? | | ???????????# ########????????????????????? | | ???????????# #????????????????????? | | ???????????# %% #????????????????????? | | ???????????# """%""" """ ##???????????????????? | | ???????????# """ """ """ "#???????????????????? | | ???????????# """ "" """ "#????????????#?#????? | | ???????????# "#????????????# #????? | | ???????????# """ "" """ T#??????#######+###### | | ???????????# """ """ """ "#??????#[ # | | ???????????# """ """ "" "#??????# !# | | ???????????# "#??????# " " " " " # | | ???????????# """ """ """ ##??????# " " " " " # | | ???????????# """ """ """ #??????# " " " " " # | | ???????????# "%" """ """ #??????# " " " " " # | | ???????????# #??????# " " " " " # | | ???????????#""[ """ """ #??????# " " " " " + | | ???????????#"F """p""" #??????#! " " " " " # | | ???????????#""" """ """ #??????# " " " " " # | | ???????????#""" ! #??????# " " " " " # | | ######?????# ! #??????#! # | | ??????# @ ##############+###### | | ???????# r* =%% | | """? ""????# gg =% % | | """" """???# g gg % | | """" """???# % | | """" """" # % """% """"""" """ | | """" """" # """ """"""" """ | | "" " """" # """ """"""" """ | | ## T####### """"""" | | ####??????# | | #?????????# """""" """"""" """ | | #?????????# """"""" """"""" """ | | #/# ################## "F"" """"""" """"""" """ | | # #?# """" """"""" """"""" """ | | # ##?# #####+##### | | # ##### ## # | | # ## """"" + [ ########### | | # ######## """"" # ###########??########### | | #+####???# """ # """ # #??????# | | ##???# ! # "R # #??????# | | ###??# = # """ # #??????# | | ##??# = # !# #??????# | | ###??# # + #??????#### # | | ##???# ######### #????????????? | | ##???##########???????# #????????????? | +----------------------------------------------------+ Best States ------------- Heat Dissipation 61 Coolant Potential 65 Energy Generation 25 Energy Capacity 465 Matter Stores 300 Matter Capacity 300 Sight Range 16 Terrain Scan Density 10 Cloak Strength 5 Armor Coverage 300 Propulsion Shielding 33 Evasion (%) 40 Targeting Accuracy 6 Recoil Reduction 3 Offensive Hacking 30 Authchip Count 1 Item Schematics ----------------- Hacking Suite | -9/Materials | Scanalyzed Huge Storage Unit | -9/Materials | Scanalyzed Minigun | -9/Materials | Scanalyzed Enh. Autogun | -8/Materials | Scanalyzed Med. Treads | -8/Materials | Scanalyzed Imp. Shield Generator | -8/Materials | Scanalyzed Robot Schematics ------------------ None Fabricated ------------ Enh. Autogun | x1 | -7/Factory Alien Tech Used ----------------- None Achievements -------------- None Challenges ------------ None Game ------ Seed StealthProtonStripper Manual? 0 Play Time 00:55:39 Cumulative 39.3 hours Start 2023.12.03 @ 08:24:44 End 2023.12.03 @ 09:19:15 Sessions 1 Manual Loads 0 Difficulty Rogue Special Mode None Game No. 68 Rogue 68 Adventurer 0 Explorer 0 Win Type - Total 0 Types 0/0/0/0/0/0/0/0/0 Lore% 26 Gallery% 33 Achievement% 30 Wizard Run 0 Options --------- ASCII 0 Keyboard 1 Movement Numpad Keybinds 0 Fullscreen 2 Font 18/SmallcapsGlow Map View 76x50 Tactical HUD 1 Map Filters NONE Filters NONE Steam 1 RUN: 83b9a8c9-b50b-4d22-a1be-0cb427898a4c